[Event "Titled Tuesday Blitz February 15 Early 2022"]
[White "Seo, Jung Min"]
[Black "Manukyan, Artyom"]
[WhiteFideId "1734687"]
[BlackFideId "13305786"]
[WhiteElo "2707"]
[BlackElo "2550"]
[Result "1-0"]
[Round "05"]
[TimeControl "180+1"]
[Date "2022.02.15"]
[WhiteClock "0:00:55"]
[BlackClock "0:00:07"]

1. e4 {[%clk 0:03:00]}  c5 {[%clk 0:02:58]} 2. Nf3 {[%clk 0:03:00]}  d6 {[%clk 0:02:58]} 3. d4 {[%clk 0:03:00]}  cxd4 {[%clk 0:02:59]} 4. Nxd4 {[%clk 0:03:01]}  Nf6 {[%clk 0:02:59]} 5. Nc3 {[%clk 0:03:01]}  g6 {[%clk 0:03:00]} 6. Be2 {[%clk 0:02:59]}  Bg7 {[%clk 0:02:59]} 7. Be3 {[%clk 0:02:59]}  O-O {[%clk 0:03:00]} 8. O-O {[%clk 0:02:59]}  Nc6 {[%clk 0:03:00]} 9. Nb3 {[%clk 0:02:59]}  Be6 {[%clk 0:03:00]} 10. f4 {[%clk 0:02:59]}  Na5 {[%clk 0:03:00]} 11. f5 {[%clk 0:02:53]}  Bc4 {[%clk 0:02:59]} 12. Bd4 {[%clk 0:02:51]}  Rc8 {[%clk 0:02:54]} 13. Bd3 {[%clk 0:02:48]}  Bxd3 {[%clk 0:02:51]} 14. cxd3 {[%clk 0:02:45]}  Nxb3 {[%clk 0:02:49]} 15. Qxb3 {[%clk 0:02:43]}  b6 {[%clk 0:02:47]} 16. Qa4 {[%clk 0:02:27]}  Qd7 {[%clk 0:02:44]} 17. Qd1 {[%clk 0:02:21]}  Rfe8 {[%clk 0:02:28]} 18. h3 {[%clk 0:02:20]}  Qc6 {[%clk 0:02:14]} 19. Qf3 {[%clk 0:02:19]}  Rcd8 {[%clk 0:02:05]} 20. fxg6 {[%clk 0:02:10]}  fxg6 {[%clk 0:01:59]} 21. Nd5 {[%clk 0:02:10]}  Qd7 {[%clk 0:01:22]} 22. Bxf6 {[%clk 0:02:03]}  exf6 {[%clk 0:01:20]} 23. Nxf6+ {[%clk 0:02:03]}  Bxf6 {[%clk 0:01:19]} 24. Qxf6 {[%clk 0:02:03]}  Rf8 {[%clk 0:01:19]} 25. Qc3 {[%clk 0:02:01]}  d5 {[%clk 0:01:12]} 26. e5 {[%clk 0:01:54]}  d4 {[%clk 0:01:11]} 27. Qc4+ {[%clk 0:01:53]}  Qd5 {[%clk 0:01:07]} 28. Rxf8+ {[%clk 0:01:53]}  Kxf8 {[%clk 0:01:07]} 29. Qc7 {[%clk 0:01:49]}  Qd7 {[%clk 0:01:00]} 30. Rf1+ {[%clk 0:01:43]}  Kg8 {[%clk 0:01:00]} 31. Qc4+ {[%clk 0:01:41]}  Qd5 {[%clk 0:00:55]} 32. Qc7 {[%clk 0:01:33]}  Qd7 {[%clk 0:00:51]} 33. Rc1 {[%clk 0:01:23]}  Qxc7 {[%clk 0:00:44]} 34. Rxc7 {[%clk 0:01:23]}  Rd5 {[%clk 0:00:45]} 35. Rxa7 {[%clk 0:01:22]}  Rxe5 {[%clk 0:00:45]} 36. Rd7 {[%clk 0:01:22]}  Re2 {[%clk 0:00:43]} 37. Rxd4 {[%clk 0:01:21]}  Rxb2 {[%clk 0:00:43]} 38. a4 {[%clk 0:01:21]}  Kg7 {[%clk 0:00:41]} 39. Kh2 {[%clk 0:01:20]}  h5 {[%clk 0:00:40]} 40. Kg3 {[%clk 0:01:19]}  Kf6 {[%clk 0:00:37]} 41. h4 {[%clk 0:01:19]}  Kf5 {[%clk 0:00:32]} 42. Kf3 {[%clk 0:01:18]}  Ke5 {[%clk 0:00:24]} 43. Re4+ {[%clk 0:01:18]}  Kf5 {[%clk 0:00:24]} 44. Re8 {[%clk 0:01:09]}  Rb3 {[%clk 0:00:20]} 45. Ke3 {[%clk 0:01:08]}  Rb2 {[%clk 0:00:20]} 46. Rf8+ {[%clk 0:01:01]}  Kg4 {[%clk 0:00:20]} 47. Rf6 {[%clk 0:01:00]}  Kxh4 {[%clk 0:00:13]} 48. Rxg6 {[%clk 0:01:00]}  Rb4 {[%clk 0:00:11]} 49. d4 {[%clk 0:01:00]}  Rxa4 {[%clk 0:00:09]} 50. Rxb6 {[%clk 0:01:00]}  Kg3 {[%clk 0:00:09]} 51. Rg6+ {[%clk 0:01:00]}  Kh2 {[%clk 0:00:09]} 52. Rg5 {[%clk 0:00:59]}  h4 {[%clk 0:00:07]} 53. Rg4 {[%clk 0:00:59]}  Ra3+ {[%clk 0:00:03]} 54. Ke4 {[%clk 0:00:58]}  h3 {[%clk 0:00:02]} 55. gxh3 {[%clk 0:00:58]}  Kxh3 {[%clk 0:00:03]} 56. Rg8 {[%clk 0:00:58]}  Kh4 {[%clk 0:00:03]} 57. d5 {[%clk 0:00:57]}  Kh5 {[%clk 0:00:04]} 58. Ke5 {[%clk 0:00:56]}  Ra1 {[%clk 0:00:05]} 59. d6 {[%clk 0:00:56]}  Rd1 {[%clk 0:00:06]} 60. Ke6 {[%clk 0:00:56]}  Kh6 {[%clk 0:00:07]} 61. d7 {[%clk 0:00:55]} 1-0


[Site "https://www.chess.com"]

[Event "Titled Tuesday Blitz February 15 Early 2022"]
[White "Shevtchenko, Olesya"]
[Black "Ratnakaran, K."]
[WhiteFideId "24131890"]
[BlackFideId "5005507"]
[WhiteElo "2003"]
[BlackElo "2391"]
[Result "0-1"]
[Round "05"]
[TimeControl "180+1"]
[Date "2022.02.15"]
[WhiteClock "0:00:20"]
[BlackClock "0:01:13"]

1. e4 {[%clk 0:03:00]}  e6 {[%clk 0:02:58]} 2. d4 {[%clk 0:03:00]}  d5 {[%clk 0:02:57]} 3. Nc3 {[%clk 0:03:00]}  Nf6 {[%clk 0:02:57]} 4. e5 {[%clk 0:03:00]}  Nfd7 {[%clk 0:02:58]} 5. f4 {[%clk 0:03:01]}  c5 {[%clk 0:02:58]} 6. Nf3 {[%clk 0:03:01]}  Be7 {[%clk 0:02:58]} 7. Be3 {[%clk 0:03:00]}  b6 {[%clk 0:02:57]} 8. Qd2 {[%clk 0:02:57]}  O-O {[%clk 0:02:57]} 9. h4 {[%clk 0:02:57]}  f5 {[%clk 0:02:56]} 10. exf6 {[%clk 0:02:53]}  Nxf6 {[%clk 0:02:55]} 11. O-O-O {[%clk 0:02:39]}  Nc6 {[%clk 0:02:54]} 12. Kb1 {[%clk 0:02:39]}  c4 {[%clk 0:02:49]} 13. Ne5 {[%clk 0:02:30]}  Nxe5 {[%clk 0:02:42]} 14. fxe5 {[%clk 0:02:30]}  Ng4 {[%clk 0:02:43]} 15. Be2 {[%clk 0:02:29]}  Nf2 {[%clk 0:02:39]} 16. Bxf2 {[%clk 0:02:28]}  Rxf2 {[%clk 0:02:39]} 17. g3 {[%clk 0:02:24]}  Bb4 {[%clk 0:02:35]} 18. Qe3 {[%clk 0:02:23]}  Rf8 {[%clk 0:02:26]} 19. Rdf1 {[%clk 0:02:23]}  Bd7 {[%clk 0:02:26]} 20. Bg4 {[%clk 0:02:21]}  Qe7 {[%clk 0:02:25]} 21. Ne2 {[%clk 0:02:18]}  c3 {[%clk 0:02:22]} 22. Nxc3 {[%clk 0:02:03]}  Rac8 {[%clk 0:02:21]} 23. Ne2 {[%clk 0:02:01]}  b5 {[%clk 0:02:15]} 24. Nf4 {[%clk 0:01:55]}  Ba5 {[%clk 0:02:15]} 25. Nd3 {[%clk 0:01:53]}  Bb6 {[%clk 0:02:12]} 26. Bh3 {[%clk 0:01:37]}  b4 {[%clk 0:02:09]} 27. Rxf8+ {[%clk 0:01:33]}  Qxf8 {[%clk 0:02:03]} 28. Rf1 {[%clk 0:01:32]}  Qe7 {[%clk 0:01:58]} 29. Rf4 {[%clk 0:01:11]}  a5 {[%clk 0:01:56]} 30. Nf2 {[%clk 0:01:09]}  Ba4 {[%clk 0:01:55]} 31. b3 {[%clk 0:01:09]}  Bd7 {[%clk 0:01:53]} 32. Ng4 {[%clk 0:01:09]}  Qd8 {[%clk 0:01:45]} 33. Nf6+ {[%clk 0:01:02]}  gxf6 {[%clk 0:01:44]} 34. Rxf6 {[%clk 0:01:02]}  Qc7 {[%clk 0:01:39]} 35. Qg5+ {[%clk 0:00:58]}  Kh8 {[%clk 0:01:38]} 36. Rf2 {[%clk 0:00:55]}  Qd8 {[%clk 0:01:34]} 37. Qf4 {[%clk 0:00:49]}  Qe7 {[%clk 0:01:32]} 38. h5 {[%clk 0:00:44]}  Rg8 {[%clk 0:01:23]} 39. h6 {[%clk 0:00:38]}  Qg5 {[%clk 0:01:22]} 40. Qxg5 {[%clk 0:00:25]}  Rxg5 {[%clk 0:01:21]} 41. Rf8+ {[%clk 0:00:24]}  Rg8 {[%clk 0:01:21]} 42. Rf7 {[%clk 0:00:24]}  Rxg3 {[%clk 0:01:15]} 43. Rxd7 {[%clk 0:00:23]}  Rxh3 {[%clk 0:01:14]} 44. Rb7 {[%clk 0:00:19]}  Rh1+ {[%clk 0:01:14]} 45. Kb2 {[%clk 0:00:19]}  Bxd4+ {[%clk 0:01:14]} 46. c3 {[%clk 0:00:20]}  Bxc3+ {[%clk 0:01:13]} 47. Kc2 {[%clk 0:00:20]}  Rxh6 {[%clk 0:01:13]} 0-1


[Site "https://www.chess.com"]

[Event "Titled Tuesday Blitz February 15 Early 2022"]
[White "Shtyka, Sergey"]
[Black "Gatterer, Florian"]
[WhiteFideId "4138465"]
[BlackFideId "811688"]
[WhiteElo "2014"]
[BlackElo "2218"]
[Result "1/2-1/2"]
[Round "05"]
[TimeControl "180+1"]
[Date "2022.02.15"]
[WhiteClock "0:00:46"]
[BlackClock "0:00:18"]

1. e4 {[%clk 0:03:00]}  e5 {[%clk 0:02:59]} 2. Nf3 {[%clk 0:02:59]}  Nc6 {[%clk 0:02:58]} 3. Nc3 {[%clk 0:02:59]}  Nf6 {[%clk 0:02:57]} 4. Bb5 {[%clk 0:02:59]}  Nd4 {[%clk 0:02:56]} 5. Ba4 {[%clk 0:02:58]}  c6 {[%clk 0:02:52]} 6. d3 {[%clk 0:02:58]}  Bc5 {[%clk 0:02:49]} 7. Nxd4 {[%clk 0:02:57]}  Bxd4 {[%clk 0:02:48]} 8. Ne2 {[%clk 0:02:57]}  Bb6 {[%clk 0:02:32]} 9. Bg5 {[%clk 0:02:56]}  h6 {[%clk 0:02:31]} 10. Bh4 {[%clk 0:02:56]}  g5 {[%clk 0:02:26]} 11. Bg3 {[%clk 0:02:56]}  Qe7 {[%clk 0:02:26]} 12. O-O {[%clk 0:02:47]}  O-O {[%clk 0:02:19]} 13. Kh1 {[%clk 0:02:46]}  d6 {[%clk 0:02:17]} 14. f3 {[%clk 0:02:46]}  Nh5 {[%clk 0:02:15]} 15. Bf2 {[%clk 0:02:44]}  Kg7 {[%clk 0:02:11]} 16. Bxb6 {[%clk 0:02:41]}  axb6 {[%clk 0:02:10]} 17. Bb3 {[%clk 0:02:42]}  Be6 {[%clk 0:02:10]} 18. Ng3 {[%clk 0:02:24]}  Nxg3+ {[%clk 0:02:07]} 19. hxg3 {[%clk 0:02:24]}  f5 {[%clk 0:02:04]} 20. Bxe6 {[%clk 0:02:05]}  Qxe6 {[%clk 0:02:03]} 21. a3 {[%clk 0:02:01]}  f4 {[%clk 0:02:01]} 22. g4 {[%clk 0:01:54]}  h5 {[%clk 0:01:48]} 23. gxh5 {[%clk 0:01:54]}  Rh8 {[%clk 0:01:42]} 24. Kg1 {[%clk 0:01:54]}  Rxh5 {[%clk 0:01:40]} 25. Kf2 {[%clk 0:01:54]}  Rah8 {[%clk 0:01:39]} 26. Qe2 {[%clk 0:01:49]}  Rh2 {[%clk 0:01:23]} 27. Ke1 {[%clk 0:01:48]}  g4 {[%clk 0:01:17]} 28. fxg4 {[%clk 0:01:45]}  R8h4 {[%clk 0:01:17]} 29. Kd2 {[%clk 0:01:35]}  Qxg4 {[%clk 0:01:13]} 30. Rf2 {[%clk 0:01:27]}  Qxe2+ {[%clk 0:01:01]} 31. Kxe2 {[%clk 0:01:26]}  Rg4 {[%clk 0:00:57]} 32. Rg1 {[%clk 0:01:23]}  Rg3 {[%clk 0:00:43]} 33. Kf1 {[%clk 0:01:15]}  c5 {[%clk 0:00:38]} 34. Rf3 {[%clk 0:01:05]}  Rxf3+ {[%clk 0:00:19]} 35. gxf3+ {[%clk 0:01:05]}  Kf6 {[%clk 0:00:19]} 36. Rg2 {[%clk 0:01:05]}  Rh1+ {[%clk 0:00:19]} 37. Rg1 {[%clk 0:00:56]}  Rh2 {[%clk 0:00:18]} 38. Rg2 {[%clk 0:00:54]}  Rh1+ {[%clk 0:00:18]} 39. Rg1 {[%clk 0:00:46]}  Rh2 {[%clk 0:00:18]} 1/2-1/2


[Site "https://www.chess.com"]

[Event "Titled Tuesday Blitz February 15 Early 2022"]
[White "Shuvalov, Evgenij"]
[Black "De Souza Sa, Apolo"]
[WhiteFideId "4187237"]
[BlackFideId "324225390"]
[WhiteElo "2119"]
[BlackElo "1828"]
[Result "1/2-1/2"]
[Round "05"]
[TimeControl "180+1"]
[Date "2022.02.15"]
[WhiteClock "0:00:17"]
[BlackClock "0:00:12"]

1. e4 {[%clk 0:03:00]}  c5 {[%clk 0:01:30]} 2. Nf3 {[%clk 0:02:53]}  d6 {[%clk 0:01:30]} 3. c3 {[%clk 0:02:48]}  Nf6 {[%clk 0:01:30]} 4. Be2 {[%clk 0:02:47]}  Nc6 {[%clk 0:01:29]} 5. d4 {[%clk 0:02:44]}  cxd4 {[%clk 0:01:30]} 6. cxd4 {[%clk 0:02:44]}  Bg4 {[%clk 0:01:30]} 7. Nc3 {[%clk 0:02:39]}  Bxf3 {[%clk 0:01:29]} 8. Bxf3 {[%clk 0:02:38]}  e6 {[%clk 0:01:29]} 9. d5 {[%clk 0:02:34]}  Ne5 {[%clk 0:01:28]} 10. Be2 {[%clk 0:02:34]}  exd5 {[%clk 0:01:26]} 11. exd5 {[%clk 0:02:33]}  Be7 {[%clk 0:01:27]} 12. O-O {[%clk 0:02:32]}  O-O {[%clk 0:01:27]} 13. Be3 {[%clk 0:02:30]}  Qa5 {[%clk 0:01:15]} 14. Rc1 {[%clk 0:02:26]}  Rac8 {[%clk 0:00:58]} 15. Qb3 {[%clk 0:02:23]}  b6 {[%clk 0:00:33]} 16. h3 {[%clk 0:02:14]}  h5 {[%clk 0:00:26]} 17. Rfd1 {[%clk 0:01:42]}  g6 {[%clk 0:00:24]} 18. Nb5 {[%clk 0:01:24]}  Rxc1 {[%clk 0:00:17]} 19. Rxc1 {[%clk 0:01:19]}  a6 {[%clk 0:00:17]} 20. Nc3 {[%clk 0:00:43]}  b5 {[%clk 0:00:17]} 21. a3 {[%clk 0:00:42]}  Rc8 {[%clk 0:00:15]} 22. Rd1 {[%clk 0:00:41]}  Qc7 {[%clk 0:00:15]} 23. Bd4 {[%clk 0:00:40]}  Nc4 {[%clk 0:00:14]} 24. a4 {[%clk 0:00:36]}  Qb7 {[%clk 0:00:12]} 25. axb5 {[%clk 0:00:35]}  axb5 {[%clk 0:00:13]} 26. Qxb5 {[%clk 0:00:27]}  Qxb5 {[%clk 0:00:12]} 27. Nxb5 {[%clk 0:00:28]}  Nxd5 {[%clk 0:00:10]} 28. Rc1 {[%clk 0:00:26]}  Ncb6 {[%clk 0:00:09]} 29. Rxc8+ {[%clk 0:00:25]}  Nxc8 {[%clk 0:00:10]} 30. Nc3 {[%clk 0:00:20]}  Nxc3 {[%clk 0:00:09]} 31. Bxc3 {[%clk 0:00:21]}  Nb6 {[%clk 0:00:09]} 32. b4 {[%clk 0:00:21]}  Nd5 {[%clk 0:00:09]} 33. Bd2 {[%clk 0:00:21]}  Bd8 {[%clk 0:00:09]} 34. b5 {[%clk 0:00:20]}  Bb6 {[%clk 0:00:08]} 35. Bf3 {[%clk 0:00:20]}  Nc7 {[%clk 0:00:08]} 36. Bc6 {[%clk 0:00:20]}  Kf8 {[%clk 0:00:08]} 37. Kf1 {[%clk 0:00:21]}  Ke7 {[%clk 0:00:09]} 38. Ke2 {[%clk 0:00:21]}  Ne6 {[%clk 0:00:09]} 39. Be3 {[%clk 0:00:21]}  Nd4+ {[%clk 0:00:07]} 40. Kd3 {[%clk 0:00:21]}  Nxc6 {[%clk 0:00:07]} 41. bxc6 {[%clk 0:00:20]}  Bxe3 {[%clk 0:00:06]} 42. fxe3 {[%clk 0:00:20]}  d5 {[%clk 0:00:06]} 43. e4 {[%clk 0:00:18]}  dxe4+ {[%clk 0:00:06]} 44. Kxe4 {[%clk 0:00:19]}  Ke6 {[%clk 0:00:05]} 45. h4 {[%clk 0:00:18]}  f6 {[%clk 0:00:05]} 46. c7 {[%clk 0:00:15]}  Kd7 {[%clk 0:00:05]} 47. Kd5 {[%clk 0:00:16]}  g5 {[%clk 0:00:05]} 48. c8=Q+ {[%clk 0:00:15]}  Kxc8 {[%clk 0:00:05]} 49. Ke6 {[%clk 0:00:16]}  gxh4 {[%clk 0:00:05]} 50. Kxf6 {[%clk 0:00:16]}  h3 {[%clk 0:00:05]} 51. gxh3 {[%clk 0:00:16]}  Kd8 {[%clk 0:00:05]} 52. h4 {[%clk 0:00:15]}  Ke8 {[%clk 0:00:06]} 53. Kg6 {[%clk 0:00:15]}  Kf8 {[%clk 0:00:07]} 54. Kxh5 {[%clk 0:00:16]}  Kg8 {[%clk 0:00:07]} 55. Kh6 {[%clk 0:00:15]}  Kh8 {[%clk 0:00:08]} 56. Kg6 {[%clk 0:00:16]}  Kg8 {[%clk 0:00:09]} 57. h5 {[%clk 0:00:16]}  Kh8 {[%clk 0:00:10]} 58. h6 {[%clk 0:00:16]}  Kg8 {[%clk 0:00:11]} 59. h7+ {[%clk 0:00:16]}  Kh8 {[%clk 0:00:12]} 60. Kh6 {[%clk 0:00:17]} 1/2-1/2


[Site "https://www.chess.com"]

[Event "Titled Tuesday Blitz February 15 Early 2022"]
[White "Singh, Ojasva"]
[Black "Pires, Marcos Vinicius Torsani"]
[WhiteFideId "25681958"]
[BlackFideId "2118939"]
[WhiteElo "1741"]
[BlackElo "2273"]
[Result "1/2-1/2"]
[Round "05"]
[TimeControl "180+1"]
[Date "2022.02.15"]
[WhiteClock "0:00:11"]
[BlackClock "0:00:04"]

1. e4 {[%clk 0:03:00]}  c6 {[%clk 0:02:55]} 2. d4 {[%clk 0:03:00]}  d5 {[%clk 0:02:56]} 3. Nc3 {[%clk 0:03:00]}  dxe4 {[%clk 0:02:56]} 4. Nxe4 {[%clk 0:03:01]}  Bf5 {[%clk 0:02:52]} 5. Ng3 {[%clk 0:03:01]}  Bg6 {[%clk 0:02:52]} 6. f4 {[%clk 0:03:01]}  e6 {[%clk 0:02:51]} 7. Nf3 {[%clk 0:03:01]}  Bd6 {[%clk 0:02:52]} 8. Bd3 {[%clk 0:03:00]}  Ne7 {[%clk 0:02:49]} 9. O-O {[%clk 0:02:58]}  O-O {[%clk 0:02:44]} 10. Ne5 {[%clk 0:02:56]}  Bxd3 {[%clk 0:02:42]} 11. Qxd3 {[%clk 0:02:57]}  c5 {[%clk 0:02:40]} 12. Be3 {[%clk 0:02:50]}  cxd4 {[%clk 0:02:07]} 13. Bxd4 {[%clk 0:02:46]}  Nbc6 {[%clk 0:02:07]} 14. Bc3 {[%clk 0:02:40]}  Nxe5 {[%clk 0:02:03]} 15. fxe5 {[%clk 0:02:38]}  Bc5+ {[%clk 0:02:04]} 16. Kh1 {[%clk 0:02:37]}  Qxd3 {[%clk 0:02:04]} 17. cxd3 {[%clk 0:02:38]}  Nc6 {[%clk 0:02:04]} 18. Rad1 {[%clk 0:02:22]}  Rad8 {[%clk 0:02:03]} 19. Rfe1 {[%clk 0:02:13]}  Bd4 {[%clk 0:02:00]} 20. Re4 {[%clk 0:01:57]}  Rd5 {[%clk 0:01:53]} 21. Bxd4 {[%clk 0:01:36]}  Nxd4 {[%clk 0:01:50]} 22. Ne2 {[%clk 0:01:26]}  Nxe2 {[%clk 0:01:47]} 23. Rxe2 {[%clk 0:01:27]}  Rfd8 {[%clk 0:01:47]} 24. Rc2 {[%clk 0:01:21]}  Rxe5 {[%clk 0:01:36]} 25. Rc7 {[%clk 0:01:20]}  Rb5 {[%clk 0:01:33]} 26. Rd2 {[%clk 0:01:19]}  g5 {[%clk 0:01:28]} 27. h3 {[%clk 0:01:19]}  Kg7 {[%clk 0:01:26]} 28. Rf2 {[%clk 0:01:18]}  Rf8 {[%clk 0:01:15]} 29. Rd7 {[%clk 0:01:18]}  Kg6 {[%clk 0:01:10]} 30. Rc2 {[%clk 0:01:18]}  Rd5 {[%clk 0:01:03]} 31. Rxd5 {[%clk 0:01:16]}  exd5 {[%clk 0:01:04]} 32. Rc7 {[%clk 0:01:17]}  Rb8 {[%clk 0:00:57]} 33. Rd7 {[%clk 0:01:17]}  a6 {[%clk 0:00:52]} 34. Rxd5 {[%clk 0:01:16]}  f5 {[%clk 0:00:50]} 35. Rd6+ {[%clk 0:01:13]}  Kh5 {[%clk 0:00:49]} 36. g3 {[%clk 0:01:04]}  f4 {[%clk 0:00:44]} 37. Kg2 {[%clk 0:01:02]}  fxg3 {[%clk 0:00:44]} 38. Kxg3 {[%clk 0:01:03]}  Rc8 {[%clk 0:00:44]} 39. Rd7 {[%clk 0:01:02]}  b5 {[%clk 0:00:43]} 40. Rxh7+ {[%clk 0:01:02]}  Kg6 {[%clk 0:00:42]} 41. Ra7 {[%clk 0:01:02]}  Rc6 {[%clk 0:00:42]} 42. Rd7 {[%clk 0:01:00]}  Kf5 {[%clk 0:00:40]} 43. Rd5+ {[%clk 0:00:52]}  Kf6 {[%clk 0:00:40]} 44. d4 {[%clk 0:00:52]}  Rc2 {[%clk 0:00:36]} 45. Rd6+ {[%clk 0:00:52]}  Kf5 {[%clk 0:00:35]} 46. Rxa6 {[%clk 0:00:44]}  Rxb2 {[%clk 0:00:35]} 47. Rb6 {[%clk 0:00:36]}  b4 {[%clk 0:00:32]} 48. Rb5+ {[%clk 0:00:33]}  Kf6 {[%clk 0:00:30]} 49. Kf3 {[%clk 0:00:22]}  Rxa2 {[%clk 0:00:27]} 50. Rxb4 {[%clk 0:00:22]}  Ra3+ {[%clk 0:00:28]} 51. Kg4 {[%clk 0:00:21]}  Ra6 {[%clk 0:00:27]} 52. Rb5 {[%clk 0:00:21]}  Ra4 {[%clk 0:00:22]} 53. Rd5 {[%clk 0:00:18]}  Ke6 {[%clk 0:00:21]} 54. Re5+ {[%clk 0:00:18]}  Kf6 {[%clk 0:00:21]} 55. Rf5+ {[%clk 0:00:17]}  Ke6 {[%clk 0:00:21]} 56. Kxg5 {[%clk 0:00:15]}  Rxd4 {[%clk 0:00:20]} 57. Rf1 {[%clk 0:00:15]}  Rd2 {[%clk 0:00:17]} 58. h4 {[%clk 0:00:15]}  Rg2+ {[%clk 0:00:17]} 59. Kh6 {[%clk 0:00:15]}  Ke7 {[%clk 0:00:17]} 60. h5 {[%clk 0:00:14]}  Rg3 {[%clk 0:00:17]} 61. Kh7 {[%clk 0:00:15]}  Ke8 {[%clk 0:00:16]} 62. h6 {[%clk 0:00:15]}  Rg2 {[%clk 0:00:16]} 63. Kh8 {[%clk 0:00:14]}  Ke7 {[%clk 0:00:16]} 64. h7 {[%clk 0:00:10]}  Ke8 {[%clk 0:00:16]} 65. Re1+ {[%clk 0:00:09]}  Kf7 {[%clk 0:00:16]} 66. Rf1+ {[%clk 0:00:10]}  Ke7 {[%clk 0:00:16]} 67. Ra1 {[%clk 0:00:09]}  Kf7 {[%clk 0:00:15]} 68. Ra7+ {[%clk 0:00:09]}  Kf8 {[%clk 0:00:15]} 69. Ra8+ {[%clk 0:00:09]}  Kf7 {[%clk 0:00:16]} 70. Ra3 {[%clk 0:00:09]}  Rg1 {[%clk 0:00:14]} 71. Rf3+ {[%clk 0:00:09]}  Ke7 {[%clk 0:00:14]} 72. Rh3 {[%clk 0:00:09]}  Kf7 {[%clk 0:00:13]} 73. Rf3+ {[%clk 0:00:09]}  Ke7 {[%clk 0:00:12]} 74. Rf2 {[%clk 0:00:09]}  Rg3 {[%clk 0:00:11]} 75. Ra2 {[%clk 0:00:09]}  Rg1 {[%clk 0:00:11]} 76. Ra8 {[%clk 0:00:10]}  Kf7 {[%clk 0:00:11]} 77. Ra7+ {[%clk 0:00:10]}  Kf8 {[%clk 0:00:11]} 78. Ra8+ {[%clk 0:00:11]}  Kf7 {[%clk 0:00:10]} 79. Rg8 {[%clk 0:00:12]}  Ra1 {[%clk 0:00:05]} 80. Rg3 {[%clk 0:00:08]}  Ra8+ {[%clk 0:00:05]} 81. Rg8 {[%clk 0:00:09]}  Ra1 {[%clk 0:00:06]} 82. Rb8 {[%clk 0:00:09]}  Rg1 {[%clk 0:00:06]} 83. Rb7+ {[%clk 0:00:10]}  Kf8 {[%clk 0:00:05]} 84. Rb3 {[%clk 0:00:10]}  Kf7 {[%clk 0:00:04]} 85. Rf3+ {[%clk 0:00:11]} 1/2-1/2


[Site "https://www.chess.com"]

[Event "Titled Tuesday Blitz February 15 Early 2022"]
[White "Sinitsina, Anastassia"]
[Black "Politov, Pavel Y."]
[WhiteFideId "4504640"]
[BlackFideId "24110515"]
[WhiteElo "2144"]
[BlackElo "2090"]
[Result "1-0"]
[Round "05"]
[TimeControl "180+1"]
[Date "2022.02.15"]
[WhiteClock "0:01:57"]
[BlackClock "0:00:01"]

1. Nf3 {[%clk 0:03:00]}  d5 {[%clk 0:02:57]} 2. g3 {[%clk 0:03:01]}  Nf6 {[%clk 0:02:54]} 3. Bg2 {[%clk 0:03:01]}  Bg4 {[%clk 0:02:52]} 4. O-O {[%clk 0:03:01]}  c6 {[%clk 0:02:50]} 5. d3 {[%clk 0:03:00]}  Nbd7 {[%clk 0:02:45]} 6. e4 {[%clk 0:03:00]}  dxe4 {[%clk 0:02:40]} 7. dxe4 {[%clk 0:02:59]}  e5 {[%clk 0:02:40]} 8. Nbd2 {[%clk 0:02:56]}  Bc5 {[%clk 0:02:24]} 9. h3 {[%clk 0:02:55]}  Be6 {[%clk 0:02:10]} 10. Ng5 {[%clk 0:02:51]}  O-O {[%clk 0:01:57]} 11. Nxe6 {[%clk 0:02:46]}  fxe6 {[%clk 0:01:58]} 12. Qe2 {[%clk 0:02:46]}  Qe8 {[%clk 0:01:15]} 13. Nb3 {[%clk 0:02:41]}  Bb6 {[%clk 0:01:13]} 14. a4 {[%clk 0:02:39]}  a5 {[%clk 0:00:59]} 15. Be3 {[%clk 0:02:38]}  Qe7 {[%clk 0:00:48]} 16. Rad1 {[%clk 0:02:36]}  Nc5 {[%clk 0:00:33]} 17. Qc4 {[%clk 0:02:28]}  Ncd7 {[%clk 0:00:20]} 18. Rfe1 {[%clk 0:02:27]}  Bxe3 {[%clk 0:00:17]} 19. Rxe3 {[%clk 0:02:27]}  Nb6 {[%clk 0:00:16]} 20. Qc5 {[%clk 0:02:25]}  Qxc5 {[%clk 0:00:09]} 21. Nxc5 {[%clk 0:02:25]}  Rfd8 {[%clk 0:00:06]} 22. Red3 {[%clk 0:02:22]}  Rxd3 {[%clk 0:00:03]} 23. Rxd3 {[%clk 0:02:22]}  Kf7 {[%clk 0:00:03]} 24. Rb3 {[%clk 0:02:10]}  Nc4 {[%clk 0:00:03]} 25. Rxb7+ {[%clk 0:02:10]}  Kg6 {[%clk 0:00:03]} 26. Nxe6 {[%clk 0:02:05]}  Re8 {[%clk 0:00:03]} 27. Nxg7 {[%clk 0:01:59]}  Rd8 {[%clk 0:00:03]} 28. Nf5 {[%clk 0:01:59]}  Rd1+ {[%clk 0:00:03]} 29. Kh2 {[%clk 0:01:58]}  Rd2 {[%clk 0:00:02]} 30. Rg7+ {[%clk 0:01:57]}  Kh5 {[%clk 0:00:01]} 31. g4+ {[%clk 0:01:57]} 1-0


[Site "https://www.chess.com"]

[Event "Titled Tuesday Blitz February 15 Early 2022"]
[White "Siva Mahadevan"]
[Black "Osmak, Yuliia"]
[WhiteFideId "25043153"]
[BlackFideId "14101602"]
[WhiteElo "2837"]
[BlackElo "2581"]
[Result "1-0"]
[Round "05"]
[TimeControl "180+1"]
[Date "2022.02.15"]
[WhiteClock "0:00:35"]
[BlackClock "0:00:01"]

1. e4 {[%clk 0:03:00]}  c6 {[%clk 0:02:58]} 2. d4 {[%clk 0:03:00]}  d5 {[%clk 0:02:58]} 3. e5 {[%clk 0:03:00]}  c5 {[%clk 0:02:56]} 4. Nf3 {[%clk 0:03:01]}  cxd4 {[%clk 0:02:55]} 5. Nxd4 {[%clk 0:03:01]}  e6 {[%clk 0:02:55]} 6. c4 {[%clk 0:03:02]}  Nc6 {[%clk 0:02:53]} 7. Nc3 {[%clk 0:03:03]}  Bc5 {[%clk 0:02:50]} 8. Nxc6 {[%clk 0:03:01]}  bxc6 {[%clk 0:02:50]} 9. Qg4 {[%clk 0:03:02]}  Kf8 {[%clk 0:02:37]} 10. Be2 {[%clk 0:02:57]}  Ne7 {[%clk 0:02:36]} 11. Bg5 {[%clk 0:02:52]}  h6 {[%clk 0:02:34]} 12. Bd2 {[%clk 0:02:47]}  Nf5 {[%clk 0:02:29]} 13. O-O {[%clk 0:02:46]}  a5 {[%clk 0:02:18]} 14. Rad1 {[%clk 0:02:42]}  Qh4 {[%clk 0:02:14]} 15. Na4 {[%clk 0:02:24]}  Ba7 {[%clk 0:01:55]} 16. Qxh4 {[%clk 0:02:09]}  Nxh4 {[%clk 0:01:54]} 17. Rc1 {[%clk 0:02:09]}  Bd4 {[%clk 0:01:49]} 18. Bc3 {[%clk 0:01:59]}  Nf5 {[%clk 0:01:45]} 19. Bd3 {[%clk 0:01:47]}  Bxc3 {[%clk 0:01:39]} 20. Rxc3 {[%clk 0:01:48]}  d4 {[%clk 0:01:33]} 21. Rc2 {[%clk 0:01:45]}  Ne7 {[%clk 0:01:29]} 22. Be4 {[%clk 0:01:42]}  f5 {[%clk 0:01:27]} 23. Bf3 {[%clk 0:01:29]}  g5 {[%clk 0:01:23]} 24. g3 {[%clk 0:01:22]}  Bd7 {[%clk 0:01:04]} 25. Nc5 {[%clk 0:01:19]}  Rd8 {[%clk 0:00:56]} 26. Rd2 {[%clk 0:01:13]}  Bc8 {[%clk 0:00:53]} 27. Bg2 {[%clk 0:01:07]}  Ng6 {[%clk 0:00:39]} 28. Re1 {[%clk 0:01:07]}  Rh7 {[%clk 0:00:38]} 29. b3 {[%clk 0:01:06]}  Rc7 {[%clk 0:00:30]} 30. Bf3 {[%clk 0:01:04]}  Ke7 {[%clk 0:00:27]} 31. Bh5 {[%clk 0:01:04]}  Nf8 {[%clk 0:00:24]} 32. Red1 {[%clk 0:01:04]}  a4 {[%clk 0:00:11]} 33. b4 {[%clk 0:00:54]}  d3 {[%clk 0:00:07]} 34. a3 {[%clk 0:00:49]}  Ra7 {[%clk 0:00:05]} 35. f4 {[%clk 0:00:44]}  Ba6 {[%clk 0:00:03]} 36. Nxa6 {[%clk 0:00:38]}  Rxa6 {[%clk 0:00:04]} 37. Rxd3 {[%clk 0:00:38]}  Rxd3 {[%clk 0:00:04]} 38. Rxd3 {[%clk 0:00:39]}  gxf4 {[%clk 0:00:04]} 39. gxf4 {[%clk 0:00:40]}  c5 {[%clk 0:00:04]} 40. b5 {[%clk 0:00:40]}  Ra7 {[%clk 0:00:03]} 41. Kf2 {[%clk 0:00:39]}  Nd7 {[%clk 0:00:02]} 42. Rd6 {[%clk 0:00:37]}  Rb7 {[%clk 0:00:02]} 43. Bf3 {[%clk 0:00:37]}  Rb8 {[%clk 0:00:02]} 44. Ke3 {[%clk 0:00:36]}  Nb6 {[%clk 0:00:02]} 45. Be2 {[%clk 0:00:35]}  Rb7 {[%clk 0:00:01]} 46. Rc6 {[%clk 0:00:35]}  Rb8 {[%clk 0:00:01]} 47. Rxc5 {[%clk 0:00:35]} 1-0


[Site "https://www.chess.com"]